fUSD/lending_fUSD_20240920
["ID","MTS","AMOUNT","RATE_DAILY","PERIOD"]
[338672898,1726863043939,-152.88,0.00014209,2]
[338672899,1726863043949,-52304.5788186,0.0001422,3]
[338672900,1726863043958,-67073.2498583,0.0001422,3]
[338672901,1726863043968,-2000.0,0.00014223,2]
[338672902,1726863043977,-152.88,0.0001424,2]
[338672903,1726863043987,-33536.6249291,0.0001424,3]
[338672904,1726863043996,-600.0,0.00014241,2]
[338672905,1726863044006,-600.0,0.00014241,2]
[338672906,1726863044015,-600.0,0.00014241,2]
[338672907,1726863044024,-600.0,0.00014241,2]
[338672908,1726863044034,-600.0,0.00014241,2]
[338672909,1726863044043,-600.0,0.00014241,2]
[338672910,1726863044052,-600.0,0.00014241,2]
[338672911,1726863044062,-12023.86012702,0.00014247,2]
[338672912,1726863044071,-100609.874787,0.0001425,3]
[338672913,1726863044081,-152.88,0.0001425,2]
[338672914,1726863044090,-152.88,0.0001425,2]
[338672915,1726863044100,-600.0,0.0001425,2]
[338672916,1726863044110,-600.0,0.0001425,2]
[338672917,1726863044119,-600.0,0.0001425,2]
[338672918,1726863044128,-600.0,0.0001425,2]
[338672919,1726863044138,-600.0,0.0001425,2]
[338672920,1726863044148,-600.0,0.0001425,2]
[338672921,1726863044157,-600.0,0.0001425,2]
[338672922,1726863044168,-600.0,0.0001425,2]
[338672923,1726863044177,-600.0,0.0001425,2]
[338672924,1726863044187,-600.0,0.0001425,2]
[338672925,1726863044197,-600.0,0.0001425,2]
[338672926,1726863044207,-600.0,0.0001425,2]
[338672927,1726863044217,-600.0,0.0001425,2]
[338672928,1726863044227,-600.0,0.0001425,2]
[338672929,1726863044238,-600.0,0.0001425,2]
[338672930,1726863044248,-600.0,0.0001425,2]
[338672931,1726863044260,-600.0,0.0001425,2]
[338672932,1726863044271,-600.0,0.0001425,2]
[338672933,1726863044281,-600.0,0.0001425,2]
[338672934,1726863044291,-600.0,0.0001425,2]
[338672935,1726863044302,-600.0,0.0001425,2]
[338672936,1726863044313,-600.0,0.0001425,2]
[338672937,1726863044324,-600.0,0.0001425,2]
[338672938,1726863044336,-600.0,0.0001425,2]
[338672939,1726863044346,-600.0,0.0001425,2]
[338672940,1726863044356,-600.0,0.0001425,2]
[338672941,1726863044365,-600.0,0.0001425,2]
[338672942,1726863044375,-600.0,0.0001425,2]
[338672943,1726863044384,-600.0,0.0001425,2]
[338672944,1726863044394,-600.0,0.0001425,2]
[338672945,1726863044403,-600.0,0.0001425,2]
[338672946,1726863044414,-600.0,0.0001425,2]
[338672947,1726863044423,-600.0,0.0001425,2]
[338672948,1726863044433,-600.0,0.0001425,2]
[338672949,1726863044443,-600.0,0.0001425,2]
[338672950,1726863044452,-600.0,0.0001425,2]
[338672951,1726863044462,-600.0,0.0001425,2]
[338672952,1726863044472,-600.0,0.0001425,2]
[338672953,1726863044481,-600.0,0.0001425,2]
[338672954,1726863044490,-600.0,0.0001425,2]
[338672955,1726863044499,-600.0,0.0001425,2]
[338672956,1726863044510,-600.0,0.0001425,2]
[338672957,1726863044520,-925.59549149,0.0001425,2]
[338672958,1726863044530,-11012.42293399,0.0001425,5]
[338672959,1726863044540,-5000.65852,0.0001425,2]
[338672960,1726863044550,-226836.0,0.0001426,2]
[338672961,1726863044560,-311.217721,0.0001426,2]
[338672962,1726863044570,-311.217721,0.0001426,2]
[338672963,1726863044580,-333.990816,0.0001426,2]
[338672964,1726863044590,-333.990816,0.0001426,2]
[338672965,1726863044599,-500.0,0.00014273,2]
[338672966,1726863044610,-500.0,0.00014273,2]
[338672967,1726863044621,-500.0,0.00014273,2]
[338672968,1726863044631,-155.0,0.0001428,2]
[338672969,1726863044640,-1000.0,0.000143,4]
[338672970,1726863044650,-193.68772911,0.000143,2]
[338672971,1726863044660,-1808.14048942,0.000143,2]
[338672972,1726863044669,-336.84020246,0.000143,2]
[338672973,1726863044679,-2100.0,0.000143,5]
[338672974,1726863044688,-500.0,0.00014309,2]
[338672975,1726863044698,-2000.0,0.00014309,2]
[338672976,1726863044708,-500.0,0.00014309,2]
[338672977,1726863044718,-500.0,0.00014309,2]
[338672978,1726863044728,-524.48432749,0.00014322,2]
[338672979,1726863044737,-150.0,0.00014338,2]
[338672980,1726863044746,-210.0,0.0001434,2]
[338672981,1726863044756,-204.0,0.0001434,2]
[338672982,1726863044767,-1500.0,0.00014342,2]
[338672983,1726863044778,-1500.0,0.00014344,2]
[338672984,1726863044788,-600.0,0.00014345,2]
[338672985,1726863044797,-600.0,0.00014345,2]
[338672986,1726863044806,-600.0,0.00014345,2]
[338672987,1726863044817,-600.0,0.00014345,2]
[338672988,1726863044826,-170.54036843,0.00014348,2]
[338672989,1726863044835,-150.0,0.00014349,2]
[338672990,1726863044845,-150.0,0.00014351,2]
[338672991,1726863044855,-150.0,0.00014355,2]
[338672992,1726863044864,-150.0,0.00014368,2]
[338672993,1726863044874,-150.0,0.00014381,2]
[338672994,1726863044884,-159.99729233,0.00014384,2]
[338672995,1726863044894,-1781.16,0.00014384,2]
[338672996,1726863044904,-150.0,0.00014389,2]
[338672997,1726863044915,-2000.0,0.00014396,2]
[338672998,1726863044925,-151.0,0.000144,2]
[338672999,1726863044935,-151.0,0.000144,2]
[338673000,1726863044944,-151.0,0.000144,2]
[338673001,1726863044954,-325.345391,0.000144,2]
[338673002,1726863044964,-325.345391,0.000144,2]
[338673003,1726863044973,-177.518224,0.000144,2]
[338673004,1726863044983,-177.518224,0.000144,2]
[338673005,1726863044993,-242.13851389,0.000144,2]
[338673006,1726863045003,-85838.21691721,0.000144,2]
[338673007,1726863045012,-2054.36937644,0.000144,2]
[338673008,1726863045021,-400.0,0.000144,5]
[338673009,1726863045031,-150.0,0.00014405,2]
[338673010,1726863045041,-1500.0,0.00014409,2]
[338673011,1726863045051,-296.87106809,0.00014411,2]
[338673012,1726863045060,-150.0,0.00014414,2]
[338673013,1726863045070,-150.0,0.0001442,2]
[338673014,1726863045080,-152.88,0.00014423,2]
[338673015,1726863045089,-150.0,0.00014425,2]
[338673016,1726863045099,-279.31,0.00014427,2]
[338673017,1726863045109,-150.0,0.00014428,2]
[338673018,1726863045118,-150.0,0.00014432,2]
[338673019,1726863045128,-6425.92302995,0.00014433,2]
[338673020,1726863045137,-1500.0,0.00014444,2]
[338673021,1726863045147,-228.35410344,0.00014447,2]
[338673022,1726863045157,-150.0,0.00014451,2]
[338673023,1726863045167,-150.0,0.00014452,2]
[338673024,1726863045177,-150.75966,0.00014454,2]
[338673025,1726863045187,-159.99729233,0.00014466,2]
[338673026,1726863045197,-152.63909011,0.00014467,2]
[338673027,1726863045207,-1500.0,0.00014468,2]
[338673028,1726863045216,-1500.0,0.0001447,2]
[338673029,1726863045227,-1500.0,0.0001447,2]
[338673030,1726863045237,-150.0,0.0001447,2]
[338673031,1726863045247,-150.0,0.00014472,2]
[338673032,1726863045259,-150.0,0.00014475,2]
[338673033,1726863045270,-524.48432749,0.00014479,2]
[338673034,1726863045279,-3567.9,0.00014481,7]
[338673035,1726863045289,-3567.9,0.00014481,7]
[338673036,1726863045298,-500.0,0.00014482,2]
[338673037,1726863045308,-2000.0,0.00014482,2]
[338673038,1726863045317,-500.0,0.00014482,2]
[338673039,1726863045327,-500.0,0.00014482,2]
[338673040,1726863045336,-210.47341355,0.00014486,2]
[338673041,1726863045346,-1500.0,0.0001449,2]
[338673042,1726863045355,-150.0,0.00014498,2]
[338673043,1726863045364,-210.0,0.000145,2]
[338673044,1726863045374,-187.019136,0.000145,2]
[338673045,1726863045383,-204.0,0.000145,2]
[338673046,1726863045393,-16026.99048871,0.000145,2]
[338673047,1726863045404,-2270.0,0.000145,2]
[338673048,1726863045414,-1000.0,0.000145,4]
[338673049,1726863045422,-400.0,0.000145,5]
[338673050,1726863045432,-150.0,0.00014515,2]
[338673051,1726863045442,-1500.0,0.00014516,2]
[338673052,1726863045452,-159.99729233,0.00014521,2]
[338673053,1726863045462,-6628.29653394,0.00014521,2]
[338673054,1726863045483,-4588.36346606,0.00014521,2]
[338673055,1726863045492,-510.6525,0.00014527,2]
[338673056,1726863045501,-518.4388,0.00014527,2]
[338673057,1726863045512,-150.0,0.00014531,2]
[338673058,1726863045522,-1500.0,0.00014562,2]
[338673059,1726863045531,-152.88,0.0001457,2]
[338673060,1726863045541,-500.0,0.00014573,2]
[338673061,1726863045550,-300.0,0.00014574,2]
[338673062,1726863045560,-150.0,0.00014575,2]
[338673063,1726863045570,-10274.3368235,0.00014579,2]
[338673064,1726863045579,-200.85733542,0.0001458,2]
[338673065,1726863045588,-152.88,0.0001458,2]
[338673066,1726863045598,-152.88,0.0001458,2]
[338673067,1726863045608,-152.88,0.0001458,2]
[338673068,1726863045617,-152.88,0.0001458,2]
[338673069,1726863045626,-152.88,0.0001458,2]
[338673070,1726863045636,-152.88,0.0001458,2]
[338673071,1726863045646,-152.88,0.0001458,2]
[338673072,1726863045655,-152.88,0.0001458,2]
[338673073,1726863045665,-152.88,0.0001458,2]
[338673074,1726863045675,-152.88,0.0001458,2]
[338673075,1726863045684,-166.96894861,0.0001458,2]
[338673076,1726863045693,-24886.9267564,0.0001458,2]
[338673077,1726863045703,-5850.8543225,0.0001458,2]
[338673078,1726863045712,-4911.680515,0.0001458,2]
[338673079,1726863045722,-15486.2884261,0.0001458,2]
[338673080,1726863045731,-71729.1999857,0.0001458,2]
[338673081,1726863045741,-152.88,0.0001458,2]
[338673082,1726863045751,-152.88,0.0001458,2]
[338673083,1726863045761,-152.88,0.00014583,2]
[338673084,1726863045770,-1500.0,0.00014583,2]
[338673085,1726863045779,-152.88,0.00014587,2]
[338673086,1726863045789,-300.0,0.00014588,2]
[338673087,1726863045799,-300.0,0.00014589,2]
[338673088,1726863045809,-300.0,0.00014589,2]
[338673089,1726863045819,-300.0,0.00014589,2]
[338673090,1726863045828,-300.0,0.00014589,2]
[338673091,1726863045838,-300.0,0.00014589,2]
[338673092,1726863045848,-300.0,0.00014589,2]
[338673093,1726863045857,-300.0,0.00014589,2]
[338673094,1726863045867,-300.0,0.00014589,2]
[338673095,1726863045876,-300.0,0.00014589,2]
[338673096,1726863045885,-300.0,0.00014589,2]
[338673097,1726863045894,-300.0,0.00014589,2]
[338673098,1726863045903,-300.0,0.00014589,2]
[338673099,1726863045914,-300.0,0.00014589,2]
[338673100,1726863045923,-3011.64364994,0.0001459,2]
[338673101,1726863045932,-151.0,0.0001459,2]
[338673102,1726863045942,-151.0,0.0001459,2]
[338673103,1726863045951,-151.0,0.0001459,2]
[338673104,1726863045961,-8561.8446116,0.0001459,2]
[338673105,1726863046143,-6849.3523997,0.0001459,2]
[338673106,1726863046153,-20607.0047111,0.0001459,2]
[338673107,1726863046163,-16327.0826659,0.0001459,2]
[338673108,1726863046172,-4844.6553393,0.0001459,2]
[338673109,1726863046181,-3838.456356,0.0001459,2]
[338673110,1726863046190,-6190.8977465,0.0001459,2]
[338673111,1726863046199,-7470.114978,0.0001459,2]
[338673112,1726863046208,-19519.5977887,0.0001459,2]
[338673113,1726863046217,-23552.9071512,0.0001459,2]
[338673114,1726863046227,-90410.6326126,0.0001459,2]
[338673115,1726863046236,-51193.67131017,0.0001459,2]
[338673116,1726863046248,-300.0,0.0001459,2]
[338673117,1726863046260,-40069.18019988,0.0001459,2]
[338673118,1726863046361,-17529.21372945,0.0001459,2]
[338673119,1726863046373,-152.88,0.0001459,2]
[338673120,1726863046384,-152.88,0.0001459,2]
[338673121,1726863046395,-152.88,0.0001459,2]
[338673122,1726863046406,-152.88,0.0001459,2]
[338673123,1726863046416,-152.88,0.0001459,2]
[338673124,1726863046426,-152.88,0.0001459,2]
[338673125,1726863046437,-152.88,0.0001459,2]
[338673126,1726863046450,-152.88,0.0001459,2]
[338673127,1726863046460,-152.88,0.0001459,2]
[338673128,1726863046473,-152.88,0.0001459,2]
[338673129,1726863046483,-152.88,0.0001459,2]
[338673130,1726863046494,-152.88,0.0001459,2]
[338673131,1726863046506,-152.88,0.0001459,2]
[338673132,1726863046517,-152.88,0.0001459,2]
[338673133,1726863046527,-152.88,0.0001459,2]
[338673134,1726863046537,-152.88,0.0001459,2]
[338673135,1726863046547,-152.88,0.0001459,2]
[338673136,1726863046557,-152.88,0.0001459,2]
[338673137,1726863046566,-152.88,0.0001459,2]
[338673138,1726863046575,-152.88,0.0001459,2]
[338673139,1726863046585,-152.88,0.0001459,2]
[338673140,1726863046595,-4687.30627068,0.0001459,2]
[338673142,1726863068379,311.67,0.00011715,2]
[338673143,1726863089619,500.0,0.00011164,2]
[338673145,1726863368268,277.05,0.000149,31]
[338673146,1726863368324,277.05,0.000149,31]
[338673147,1726863368384,277.05,0.000149,31]
[338673148,1726863368445,277.05,0.000149,31]
[338673149,1726863368504,277.05,0.000149,31]
[338673150,1726863368570,277.05,0.000149,31]
[338673151,1726863368626,277.05,0.000149,31]
[338673152,1726863368692,277.05,0.000149,31]
[338673153,1726863368748,277.05,0.000149,31]
[338673154,1726863368807,277.05,0.000149,31]
[338673155,1726863368871,277.05,0.000149,31]
[338673156,1726863368932,277.05,0.000149,31]
[338673157,1726863369002,277.05,0.000149,31]
[338673158,1726863369060,277.05,0.000149,31]
[338673159,1726863369122,277.05,0.000149,31]
[338673160,1726863369175,277.05,0.000149,31]
[338673164,1726863526131,500.0,0.00011164,2]
[338673165,1726863577062,183.69,0.00010959,2]
[338673166,1726863624609,1050.0,0.00011,2]
[338673167,1726863633217,312.54,9.956e-05,2]
[338673168,1726863660638,155.73,0.00011845,2]
[338673169,1726863663005,200.0,0.00011845,2]
[338673170,1726863741004,289.13,0.00011823,2]
[338673174,1726863980277,232.74,0.000149,31]
[338673175,1726863980321,232.74,0.000149,31]
[338673176,1726863980351,232.74,0.000149,31]
[338673177,1726863980531,232.74,0.000149,31]
[338673178,1726863980579,232.74,0.000149,31]
[338673179,1726863980608,232.74,0.000149,31]
[338673180,1726863980645,232.74,0.000149,31]
[338673181,1726863980686,232.74,0.000149,31]
[338673182,1726863980724,232.74,0.000149,31]
[338673183,1726863980965,232.74,0.000149,31]
[338673184,1726863980996,232.74,0.000149,31]
[338673185,1726863981024,232.74,0.000149,31]
[338673186,1726863981058,232.74,0.000149,31]
[338673187,1726863981090,232.74,0.000149,31]
[338673188,1726863981119,232.74,0.000149,31]
[338673189,1726863981149,232.74,0.000149,31]
[338673190,1726863985563,181.91,0.00011775,2]
[338673191,1726864010891,250.0,0.00011766,2]
[338673192,1726864052012,4252.89,0.00011787,2]
[338673193,1726864053330,250.0,0.00011793,2]
[338673196,1726864102376,595.25,0.00011805,2]
[338673198,1726864112306,156.31,0.00010959,2]
[338673200,1726864121221,250.0,0.0001182,2]
[338673203,1726864167819,1901.72,0.00011776,2]
[338673238,1726864237507,-281.81,0.00012126,2]
[338673239,1726864237517,-709.21565311,0.00012673,2]
[338673240,1726864237567,-400.0,0.00012673,2]
[338673241,1726864237689,-958.53901162,0.00012673,2]
[338673242,1726864237699,-1422.4903,0.0001268,2]
[338673243,1726864237708,-1800.16699218,0.00012698,2]
[338673244,1726864237719,-267.58767246,0.00012698,2]
[338673245,1726864237728,-287.98514309,0.00012713,2]
[338673246,1726864237740,-300.0,0.00012714,2]
[338673247,1726864237750,-287.98514307,0.00012715,2]
[338673248,1726864237759,-8626.69260169,0.00012715,2]
[338673249,1726864237769,-287.98514307,0.00012717,2]
[338673250,1726864237779,-5834.04,0.00012717,2]
[338673251,1726864237788,-1517.42,0.00012717,2]
[338673252,1726864237797,-287.98514307,0.00012719,2]
[338673253,1726864237806,-150.0,0.00012719,2]
[338673254,1726864237815,-29999.99,0.0001272,2]
[338673255,1726864237824,-3486.31,0.0001272,2]
[338673256,1726864237833,-5883.23,0.0001272,2]
[338673257,1726864237846,-287.18,0.0001272,2]
[338673258,1726864237859,-20593.64,0.0001272,2]
[338673259,1726864237868,-287.98514307,0.0001272,2]
[338673260,1726864237877,-150.99,0.00012722,2]
[338673261,1726864237887,-174.18442349,0.00012722,2]
[338673262,1726864237896,-499.99,0.00012722,2]
[338673263,1726864237905,-287.98514307,0.00012722,2]
[338673264,1726864237915,-2067.75466464,0.00012723,2]
[338673265,1726864237924,-287.98514307,0.00012724,2]
[338673266,1726864237934,-1488.48,0.00012725,2]
[338673267,1726864237944,-7500.0,0.00012725,2]
[338673268,1726864237953,-161.50318158,0.00012726,2]
[338673270,1726864237962,-161.50318158,0.00012726,2]
[338673272,1726864237971,-161.50318158,0.00012726,2]
[338673274,1726864237980,-161.50318158,0.00012726,2]
[338673276,1726864237990,-161.50318158,0.00012726,2]
[338673278,1726864237999,-161.50318158,0.00012726,2]
[338673280,1726864238010,-161.50318158,0.00012726,2]
[338673281,1726864238205,-161.50318158,0.00012726,2]
[338673282,1726864238215,-161.50318158,0.00012726,2]
[338673284,1726864238225,-161.50318158,0.00012726,2]
[338673287,1726864238237,-161.50318158,0.00012726,2]
[338673289,1726864238247,-161.50318158,0.00012726,2]
[338673291,1726864238259,-161.50318158,0.00012726,2]
[338673293,1726864238269,-161.50318158,0.00012726,2]
[338673295,1726864238278,-161.50318158,0.00012726,2]
[338673297,1726864238287,-161.50318158,0.00012726,2]
[338673299,1726864238296,-161.50318158,0.00012726,2]
[338673300,1726864238305,-161.50318158,0.00012726,2]
[338673301,1726864238314,-161.50318158,0.00012726,2]
[338673303,1726864238323,-162.0,0.00012726,2]
[338673305,1726864238332,-1200.59180074,0.00012726,2]
[338673307,1726864238343,-1200.59180074,0.00012726,2]
[338673309,1726864238352,-1200.59180074,0.00012726,2]
[338673311,1726864238361,-1200.59180074,0.00012726,2]
[338673313,1726864238370,-1200.59180074,0.00012726,2]
[338673315,1726864238379,-1200.59180074,0.00012726,2]
[338673317,1726864238388,-1200.59180074,0.00012726,2]
[338673319,1726864238397,-1200.59180074,0.00012726,2]
[338673321,1726864238406,-1200.59180074,0.00012726,2]
[338673323,1726864238415,-1200.59180074,0.00012726,2]
[338673325,1726864238424,-1200.59180074,0.00012726,2]
[338673327,1726864238433,-1200.59180074,0.00012726,2]
[338673329,1726864238442,-1200.59180074,0.00012726,2]
[338673331,1726864238452,-1200.59180074,0.00012726,2]
[338673333,1726864238461,-1200.59180074,0.00012726,2]
[338673335,1726864238470,-1200.59180074,0.00012726,2]
[338673337,1726864238479,-1200.59180074,0.00012726,2]
[338673339,1726864238488,-1200.59180074,0.00012726,2]
[338673341,1726864238497,-1200.59180074,0.00012726,2]
[338673343,1726864238506,-1201.09,0.00012726,2]
[338673345,1726864238515,-1281.41914923,0.00012726,2]
[338673347,1726864238526,-1281.41914923,0.00012726,2]
[338673349,1726864238534,-1281.41914923,0.00012726,2]
[338673351,1726864238543,-1281.41914923,0.00012726,2]
[338673353,1726864238552,-1281.41914923,0.00012726,2]
[338673355,1726864238562,-1281.41914923,0.00012726,2]
[338673357,1726864238571,-1281.41914923,0.00012726,2]
[338673359,1726864238580,-1281.41914923,0.00012726,2]
[338673361,1726864238591,-1281.41914923,0.00012726,2]
[338673363,1726864238599,-1281.41914923,0.00012726,2]
[338673365,1726864238608,-1281.41914923,0.00012726,2]
[338673367,1726864238617,-1281.41914923,0.00012726,2]
[338673369,1726864238626,-1281.41914923,0.00012726,2]
[338673371,1726864238635,-1281.41914923,0.00012726,2]
[338673373,1726864238644,-1281.41914923,0.00012726,2]
[338673375,1726864238654,-1281.41914923,0.00012726,2]
[338673377,1726864238663,-1281.41914923,0.00012726,2]
[338673379,1726864238673,-1281.41914923,0.00012726,2]
[338673381,1726864238682,-1281.41914923,0.00012726,2]
[338673383,1726864238691,-1281.91,0.00012726,2]
[338673384,1726864238700,-499.99,0.00012726,2]
[338673386,1726864238709,-9999.99,0.00012726,2]
[338673389,1726864238721,-205.01068911,0.00012726,2]
[338673390,1726864238730,-287.98514307,0.00012726,2]
[338673392,1726864238740,-1205.42699296,0.00012726,2]
[338673394,1726864238750,-12515.95565262,0.00012726,2]
[338673396,1726864238760,-193.6877291,0.00012726,2]
[338673398,1726864238769,-2067.75466464,0.00012749,2]
[338673400,1726864238778,-151.93,0.0001277,2]
[338673402,1726864238788,-296.16955205,0.0001277,2]
[338673405,1726864238800,-158.85892903,0.00012773,2]
[338673407,1726864238810,-500.0,0.00012773,2]
[338673409,1726864238819,-500.0,0.00012773,2]
[338673411,1726864238828,-500.0,0.00012773,2]
[338673413,1726864238838,-2067.75466464,0.00012774,2]
[338673415,1726864238847,-189.344981,0.00012776,2]
[338673417,1726864238860,-182.302393,0.00012776,2]
[338673418,1726864238869,-8831.07940205,0.00012777,2]
[338673420,1726864238879,-500.0,0.00012779,2]
[338673422,1726864238888,-500.0,0.00012779,2]
[338673424,1726864238898,-201.13214032,0.00012779,2]
[338673426,1726864238907,-66487.33663996,0.0001278,2]
[338673434,1726864238984,-1257.43565756,0.0001278,2]
[338673436,1726864238996,-829.10102755,0.0001278,2]
[338673438,1726864239007,-578996.37618992,0.0001278,2]
[338673440,1726864239016,-2067.75466464,0.00012799,2]
[338673442,1726864239026,-151.93,0.00012812,2]
[338673444,1726864239034,-1205.42699294,0.00012813,2]
[338673446,1726864239044,-12515.95565262,0.00012813,2]
[338673448,1726864239053,-151.93,0.00012813,2]
[338673450,1726864239063,-151.93,0.00012815,2]
[338673452,1726864239072,-151.93,0.00012815,2]
[338673454,1726864239081,-151.93,0.00012815,2]
[338673456,1726864239092,-151.93,0.00012815,2]
[338673458,1726864239101,-151.93,0.00012815,2]
[338673460,1726864239110,-296.16955205,0.00012815,2]
[338673462,1726864239120,-296.16955205,0.00012815,2]
[338673464,1726864239129,-151.93,0.00012816,2]
[338673466,1726864239138,-151.93,0.00012816,2]
[338673468,1726864239147,-151.93,0.00012816,2]
[338673470,1726864239157,-151.93,0.00012816,2]
[338673472,1726864239166,-151.93,0.00012816,2]
[338673473,1726864239176,-151.93,0.00012816,2]
[338673476,1726864239185,-151.93,0.00012816,2]
[338673478,1726864239195,-151.93,0.00012816,2]
[338673480,1726864239203,-151.93,0.00012816,2]
[338673482,1726864239212,-151.93,0.00012816,2]
[338673484,1726864239222,-151.93,0.00012816,2]
[338673485,1726864239231,-151.93,0.00012816,2]
[338673487,1726864239240,-151.93,0.00012816,2]
[338673489,1726864239249,-813.034,0.0001282,2]
[338673492,1726864239258,-156.603,0.0001282,2]
[338673494,1726864239268,-307762.0,0.00012822,2]
[338673495,1726864239277,-439.46815893,0.00012822,2]
[338673497,1726864239286,-1103.55580992,0.00012822,2]
[338673499,1726864239296,-56721.50368985,0.00012822,2]
[338673502,1726864239305,-2462.79192693,0.00012822,2]
[338673504,1726864239314,-70648.6352164,0.00012823,2]
[338673506,1726864239323,-298.6994849,0.00012825,2]
[338673508,1726864239332,-209.99656724,0.00012825,2]
[338673510,1726864239342,-888248.39021256,0.00012825,2]
[338673535,1726864239555,-1259.43334316,0.00012825,2]
[338673548,1726864239671,-1305.90000025,0.00012824,2]
[338673550,1726864239683,-391.951146,0.00012824,2]
[338673552,1726864239695,-369.90351839,0.00012824,2]
[338673554,1726864239705,-259.84838117,0.00012825,2]
[338673556,1726864239716,-6664.80077973,0.00012825,2]
[338673558,1726864239727,-998.486475,0.00012825,2]
[338673560,1726864239739,-812.48363188,0.00012825,2]
[338673563,1726864239751,-2419.91675278,0.00012825,2]
[338673565,1726864239762,-1458.91842534,0.00012825,2]
[338673567,1726864239774,-4201.75031633,0.00012825,2]
[338673569,1726864239785,-6005.8999,0.00012825,2]
[338673575,1726864239831,-2383.28089997,0.00012825,2]
[338673577,1726864239845,-2110.66568425,0.00012825,2]
[338673579,1726864239868,-397.95,0.00012825,2]
[338673582,1726864239887,-91681.41340885,0.00012825,2]
[338673584,1726864239899,-34390.09549259,0.00012825,2]
[338673586,1726864239911,-64524.22854119,0.00012825,2]
[338673588,1726864239923,-27053.90907254,0.00012825,2]
[338673593,1726864239956,-11609.2,0.00012825,2]
[338673597,1726864239984,-794.79791123,0.00012825,2]
[338673599,1726864239995,-969.65529697,0.00012825,2]
[338673858,1726864242562,-175.18324582,0.00012722,2]
[338673861,1726864242574,-2207.33796151,0.00012825,2]
[338673863,1726864242585,-12302.15522191,0.00012825,2]
[338673865,1726864242597,-359.73856219,0.00012825,2]
[338673868,1726864242620,-687267.79537886,0.00012825,2]
[338673870,1726864242630,-500740.62956797,0.00012826,2]
[338673882,1726864242732,-7300.0,0.00012826,2]
[338673884,1726864242743,-135105.2971,0.00012826,2]
[338673896,1726864242848,-1302.1840501,0.00012826,2]
[338673898,1726864242864,-1720.3100005,0.00012826,2]
[338673901,1726864242877,-5420.415,0.00012826,2]
[338673903,1726864242888,-636.49603942,0.00012826,2]
[338673905,1726864242900,-328.04999985,0.00012826,2]
[338674164,1726864245318,313.57,0.00010601,2]
[338674187,1726864245594,-704.85845544,0.00012826,2]
[338674205,1726864245760,-3141.55007443,0.00012826,2]
[338675976,1726864375417,360.51,0.00011997,2]
[338675988,1726864565261,173.79,0.00011874,2]
[338675989,1726864592178,195.52,0.000149,31]
[338675990,1726864592230,195.52,0.000149,31]
[338675991,1726864592294,195.52,0.000149,31]
[338675992,1726864592361,195.52,0.000149,31]
[338675993,1726864592469,195.52,0.000149,31]
[338675994,1726864592502,195.52,0.000149,31]
[338675995,1726864592557,195.52,0.000149,31]
[338675996,1726864592621,195.52,0.000149,31]
[338675997,1726864592682,195.52,0.000149,31]
[338675998,1726864592742,195.52,0.000149,31]
[338675999,1726864592800,195.52,0.000149,31]
[338676000,1726864592854,195.52,0.000149,31]
[338676001,1726864592921,195.52,0.000149,31]
[338676002,1726864592976,195.52,0.000149,31]
[338676003,1726864593034,195.52,0.000149,31]
[338676004,1726864593099,195.52,0.000149,31]
[338676005,1726864599787,166.66,0.00010959,2]